[Event "*** Titled Tuesday Blitz"]
[Site "Chess.com"]
[Date "2020.05.12"]
[Round "10"]
[White "murtas73"]
[Black "LittlePeasant"]
[Result "1/2-1/2"]
[WhiteElo "2658"]
[BlackElo "2786"]
[TimeControl "180+1"]
[EndTime "11:55:52 PDT"]
[Termination "Game drawn - insufficient material"]

1. d4 {[%clk 0:03:00.9]} 1... Nf6 {[%clk 0:02:59.3]} 2. c4 {[%clk 0:03:00.1]}
2... c5 {[%clk 0:02:59.4]} 3. d5 {[%clk 0:02:59.2]} 3... b5 {[%clk 0:02:59.9]}
4. cxb5 {[%clk 0:02:59]} 4... a6 {[%clk 0:03:00.5]} 5. bxa6 {[%clk 0:02:59.5]}
5... Bxa6 {[%clk 0:03:01.4]} 6. Nc3 {[%clk 0:02:59]} 6... g6 {[%clk 0:03:02]} 7.
e4 {[%clk 0:02:58.8]} 7... Bxf1 {[%clk 0:03:02.9]} 8. Kxf1 {[%clk 0:02:59]} 8...
d6 {[%clk 0:03:03.8]} 9. Nf3 {[%clk 0:02:59.2]} 9... Bg7 {[%clk 0:03:04.4]} 10.
g3 {[%clk 0:02:59.3]} 10... O-O {[%clk 0:03:04.9]} 11. Kg2 {[%clk 0:02:59.6]}
11... Nbd7 {[%clk 0:03:05.8]} 12. a4 {[%clk 0:02:56.9]} 12... Ra6 {[%clk
0:03:06.2]} 13. Qc2 {[%clk 0:02:54.9]} 13... Qa8 {[%clk 0:03:06.5]} 14. Re1
{[%clk 0:02:49.8]} 14... Rb8 {[%clk 0:03:02.4]} 15. Ra3 {[%clk 0:02:39.5]} 15...
Rb4 {[%clk 0:03:01.9]} 16. h3 {[%clk 0:02:29.7]} 16... Ne8 {[%clk 0:02:54.4]}
17. Bg5 {[%clk 0:02:27.3]} 17... Qb7 {[%clk 0:02:40.1]} 18. Re2 {[%clk
0:02:21.6]} 18... c4 {[%clk 0:02:11.3]} 19. Nb5 {[%clk 0:02:11.7]} 19... Nc5
{[%clk 0:01:57.1]} 20. Nbd4 {[%clk 0:02:05.3]} 20... Raxa4 {[%clk 0:01:42.6]}
21. Rxa4 {[%clk 0:01:58]} 21... Rxa4 {[%clk 0:01:33.6]} 22. Nc6 {[%clk
0:01:56.1]} 22... Bf6 {[%clk 0:01:33.8]} 23. e5 {[%clk 0:01:44.4]} 23... dxe5
{[%clk 0:01:25]} 24. Be3 {[%clk 0:01:33.5]} 24... Nb3 {[%clk 0:01:15.6]} 25. Nd2
{[%clk 0:01:22.4]} 25... Nd6 {[%clk 0:01:11.1]} 26. Ne4 {[%clk 0:01:13.6]} 26...
Qb5 {[%clk 0:00:53.9]} 27. Nc3 {[%clk 0:01:10]} 27... Qa6 {[%clk 0:00:49.4]} 28.
Nxa4 {[%clk 0:01:09]} 28... Qxa4 {[%clk 0:00:50.3]} 29. Qc3 {[%clk 0:01:04.1]}
29... Qb5 {[%clk 0:00:42.6]} 30. Kg1 {[%clk 0:00:46.3]} 30... Qxd5 {[%clk
0:00:41.5]} 31. Nb4 {[%clk 0:00:44.8]} 31... Qf3 {[%clk 0:00:36.9]} 32. Re1
{[%clk 0:00:41.3]} 32... e4 {[%clk 0:00:35.9]} 33. Qc2 {[%clk 0:00:37.2]} 33...
Nd4 {[%clk 0:00:34.7]} 34. Qd1 {[%clk 0:00:36.3]} 34... Qxd1 {[%clk 0:00:27.2]}
35. Rxd1 {[%clk 0:00:35.7]} 35... Nf3+ {[%clk 0:00:28.1]} 36. Kf1 {[%clk
0:00:33.9]} 36... Bxb2 {[%clk 0:00:29]} 37. Nd5 {[%clk 0:00:27.4]} 37... c3
{[%clk 0:00:24.7]} 38. Nxe7+ {[%clk 0:00:24.4]} 38... Kf8 {[%clk 0:00:24.9]} 39.
Nxg6+ {[%clk 0:00:22.3]} 39... hxg6 {[%clk 0:00:22]} 40. Rxd6 {[%clk 0:00:22.8]}
40... Ne5 {[%clk 0:00:20.4]} 41. Rd5 {[%clk 0:00:19.9]} 41... Nd3 {[%clk
0:00:20.3]} 42. Rd8+ {[%clk 0:00:17.9]} 42... Ke7 {[%clk 0:00:19.9]} 43. Rc8
{[%clk 0:00:18.8]} 43... Kd7 {[%clk 0:00:20.5]} 44. Rc4 {[%clk 0:00:18.2]} 44...
f5 {[%clk 0:00:21]} 45. h4 {[%clk 0:00:17.2]} 45... Ke6 {[%clk 0:00:21.1]} 46.
Ke2 {[%clk 0:00:17.2]} 46... Kd5 {[%clk 0:00:21.4]} 47. Rc8 {[%clk 0:00:16.8]}
47... Ne5 {[%clk 0:00:21.8]} 48. Rc5+ {[%clk 0:00:14.5]} 48... Kd6 {[%clk
0:00:20.4]} 49. Rc8 {[%clk 0:00:14]} 49... Kd5 {[%clk 0:00:20.2]} 50. Bf4 {[%clk
0:00:13.6]} 50... Nc4 {[%clk 0:00:19]} 51. Rg8 {[%clk 0:00:11.6]} 51... c2
{[%clk 0:00:17.1]} 52. Rxg6 {[%clk 0:00:11.6]} 52... c1=Q {[%clk 0:00:17.4]} 53.
Bxc1 {[%clk 0:00:11.1]} 53... Bxc1 {[%clk 0:00:18.3]} 54. h5 {[%clk 0:00:11.3]}
54... Ne5 {[%clk 0:00:10.2]} 55. Rf6 {[%clk 0:00:11]} 55... Ng4 {[%clk
0:00:09.9]} 56. Rxf5+ {[%clk 0:00:10.8]} 56... Ke6 {[%clk 0:00:10.5]} 57. Rc5
{[%clk 0:00:10.4]} 57... Bh6 {[%clk 0:00:10.1]} 58. f3 {[%clk 0:00:07.8]} 58...
exf3+ {[%clk 0:00:09.7]} 59. Kxf3 {[%clk 0:00:08.7]} 59... Ne5+ {[%clk
0:00:10.6]} 60. Ke4 {[%clk 0:00:08.6]} 60... Nf7 {[%clk 0:00:09.6]} 61. Rc6+
{[%clk 0:00:08.5]} 61... Nd6+ {[%clk 0:00:09.5]} 62. Kf3 {[%clk 0:00:07.5]}
62... Ke5 {[%clk 0:00:08.9]} 63. g4 {[%clk 0:00:06.7]} 63... Bg5 {[%clk
0:00:09]} 64. Rc5+ {[%clk 0:00:06.6]} 64... Kf6 {[%clk 0:00:09.5]} 65. Rd5
{[%clk 0:00:06.6]} 65... Nf7 {[%clk 0:00:09]} 66. Rf5+ {[%clk 0:00:06.3]} 66...
Ke6 {[%clk 0:00:08.6]} 67. Ke4 {[%clk 0:00:07.2]} 67... Bh6 {[%clk 0:00:08.6]}
68. Ra5 {[%clk 0:00:06]} 68... Ng5+ {[%clk 0:00:08.7]} 69. Kf4 {[%clk
0:00:05.3]} 69... Nf7+ {[%clk 0:00:09.6]} 70. Kg3 {[%clk 0:00:05]} 70... Bg5
{[%clk 0:00:09.3]} 71. Ra6+ {[%clk 0:00:04.3]} 71... Ke5 {[%clk 0:00:09.7]} 72.
Rg6 {[%clk 0:00:04.7]} 72... Ke4 {[%clk 0:00:07]} 73. Rg7 {[%clk 0:00:03.7]}
73... Bf4+ {[%clk 0:00:07.4]} 74. Kh4 {[%clk 0:00:03.6]} 74... Ne5 {[%clk
0:00:08.3]} 75. g5 {[%clk 0:00:02.5]} 75... Nf3+ {[%clk 0:00:08.8]} 76. Kg4
{[%clk 0:00:02.7]} 76... Ne5+ {[%clk 0:00:09.5]} 77. Kh3 {[%clk 0:00:02.8]}
77... Kf5 {[%clk 0:00:10.4]} 78. h6 {[%clk 0:00:02.4]} 78... Ng6 {[%clk
0:00:07.6]} 79. h7 {[%clk 0:00:02.1]} 79... Nh8 {[%clk 0:00:08.5]} 80. Rg8
{[%clk 0:00:01.8]} 80... Be5 {[%clk 0:00:09.4]} 81. g6 {[%clk 0:00:01.3]} 81...
Nxg6 {[%clk 0:00:09.7]} 82. Rxg6 {[%clk 0:00:01.3]} 82... Kxg6 {[%clk
0:00:10.6]} 83. h8=Q {[%clk 0:00:01.6]} 83... Bxh8 {[%clk 0:00:11.3]} 1/2-1/2

[Event "*** Titled Tuesday Blitz"]
[Site "Chess.com"]
[Date "2020.05.12"]
[Round "10"]
[White "Chessmasterzt"]
[Black "ajian"]
[Result "1-0"]
[WhiteElo "2549"]
[BlackElo "2365"]
[TimeControl "180+1"]
[EndTime "11:56:10 PDT"]
[Termination "Chessmasterzt won on time"]

1. e4 {[%clk 0:02:56.6]} 1... c5 {[%clk 0:02:59.5]} 2. Nf3 {[%clk 0:02:56]} 2...
Nc6 {[%clk 0:02:59.6]} 3. Bb5 {[%clk 0:02:56.2]} 3... g6 {[%clk 0:02:59.5]} 4.
O-O {[%clk 0:02:53.2]} 4... Bg7 {[%clk 0:02:59.8]} 5. Re1 {[%clk 0:02:53.5]}
5... Nf6 {[%clk 0:02:59.8]} 6. e5 {[%clk 0:02:42.5]} 6... Nd5 {[%clk 0:02:58.8]}
7. Nc3 {[%clk 0:02:42.8]} 7... Nc7 {[%clk 0:02:58.5]} 8. Bxc6 {[%clk 0:02:41.3]}
8... dxc6 {[%clk 0:02:59.4]} 9. Ne4 {[%clk 0:02:37.7]} 9... Ne6 {[%clk
0:02:52.1]} 10. d3 {[%clk 0:02:35.2]} 10... O-O {[%clk 0:02:50.9]} 11. h3 {[%clk
0:02:30.1]} 11... b6 {[%clk 0:02:47.4]} 12. Neg5 {[%clk 0:02:29]} 12... h6
{[%clk 0:02:44.4]} 13. Nxe6 {[%clk 0:02:25]} 13... Bxe6 {[%clk 0:02:45.3]} 14.
b3 {[%clk 0:02:23.1]} 14... Qd7 {[%clk 0:02:41]} 15. Bf4 {[%clk 0:02:20.5]}
15... a5 {[%clk 0:02:37.4]} 16. a4 {[%clk 0:02:18]} 16... Rae8 {[%clk
0:02:23.8]} 17. Qd2 {[%clk 0:02:17.4]} 17... Kh7 {[%clk 0:02:24.1]} 18. Qe3
{[%clk 0:02:13.4]} 18... Bd5 {[%clk 0:01:58.5]} 19. Nd2 {[%clk 0:02:12.1]} 19...
f5 {[%clk 0:01:52.2]} 20. h4 {[%clk 0:02:00.1]} 20... Be6 {[%clk 0:01:36.7]} 21.
Nc4 {[%clk 0:01:56.1]} 21... Qc7 {[%clk 0:01:25.7]} 22. Qg3 {[%clk 0:01:47.8]}
22... Rg8 {[%clk 0:01:20]} 23. Re2 {[%clk 0:01:46.2]} 23... Rd8 {[%clk 0:01:19]}
24. Rae1 {[%clk 0:01:43.4]} 24... Rd4 {[%clk 0:01:15.7]} 25. Nd2 {[%clk
0:01:36.1]} 25... Bh8 {[%clk 0:00:55.7]} 26. Qh2 {[%clk 0:01:28.6]} 26... Rdd8
{[%clk 0:00:47.9]} 27. Re3 {[%clk 0:01:26]} 27... Kg7 {[%clk 0:00:44.3]} 28. Rg3
{[%clk 0:01:23.8]} 28... Kh7 {[%clk 0:00:39.7]} 29. Nf3 {[%clk 0:01:20.5]} 29...
Bd5 {[%clk 0:00:28.9]} 30. Nd2 {[%clk 0:01:09.6]} 30... b5 {[%clk 0:00:24]} 31.
Rge3 {[%clk 0:00:56.4]} 31... Be6 {[%clk 0:00:23.3]} 32. Ra1 {[%clk 0:00:54.1]}
32... Bg7 {[%clk 0:00:18]} 33. Nf3 {[%clk 0:00:51.8]} 33... Bh8 {[%clk
0:00:17.1]} 34. Ree1 {[%clk 0:00:37]} 34... c4 {[%clk 0:00:16.6]} 35. bxc4
{[%clk 0:00:32.4]} 35... bxc4 {[%clk 0:00:16.5]} 36. d4 {[%clk 0:00:32.8]} 36...
c5 {[%clk 0:00:14.8]} 37. c3 {[%clk 0:00:31.4]} 37... cxd4 {[%clk 0:00:14.9]}
38. Nxd4 {[%clk 0:00:32.3]} 38... Bd5 {[%clk 0:00:11.6]} 39. e6 {[%clk
0:00:32.7]} 39... Qb7 {[%clk 0:00:11.5]} 40. Be5 {[%clk 0:00:33.2]} 40... Bxe5
{[%clk 0:00:10.5]} 41. Rxe5 {[%clk 0:00:34.1]} 41... Be4 {[%clk 0:00:06.7]} 42.
Qf4 {[%clk 0:00:20.7]} 42... Qb2 {[%clk 0:00:06.5]} 43. Rc1 {[%clk 0:00:19]}
43... Rxd4 {[%clk 0:00:04.8]} 44. cxd4 {[%clk 0:00:18.4]} 44... Qxd4 {[%clk
0:00:05.7]} 45. Rxe4 {[%clk 0:00:15.4]} 45... Qxe4 {[%clk 0:00:04.5]} 46. Qxe4
{[%clk 0:00:15.3]} 46... fxe4 {[%clk 0:00:05.4]} 47. Rxc4 {[%clk 0:00:15.7]}
47... Rb8 {[%clk 0:00:05.8]} 48. Rc5 {[%clk 0:00:09.7]} 48... Rb1+ {[%clk
0:00:05.3]} 49. Kh2 {[%clk 0:00:09.2]} 49... Rb2 {[%clk 0:00:05.7]} 50. Kg3
{[%clk 0:00:09.4]} 50... Ra2 {[%clk 0:00:04.5]} 51. Rxa5 {[%clk 0:00:06.1]}
51... Kg7 {[%clk 0:00:05.4]} 52. Re5 {[%clk 0:00:05.1]} 52... Kf6 {[%clk
0:00:04.7]} 53. Rxe4 {[%clk 0:00:05.2]} 53... Ra3+ {[%clk 0:00:04.9]} 54. f3
{[%clk 0:00:05.6]} 54... Kf5 {[%clk 0:00:04.1]} 55. Kh3 {[%clk 0:00:05.5]} 55...
g5 {[%clk 0:00:04]} 56. Kg3 {[%clk 0:00:04.9]} 56... Kf6 {[%clk 0:00:02.9]} 57.
hxg5+ {[%clk 0:00:04.8]} 57... hxg5 {[%clk 0:00:03.8]} 58. Kg4 {[%clk
0:00:05.3]} 58... Ra2 {[%clk 0:00:03.5]} 59. g3 {[%clk 0:00:05.7]} 59... Ra3
{[%clk 0:00:03.9]} 60. f4 {[%clk 0:00:05.3]} 60... gxf4 {[%clk 0:00:04.8]} 61.
Kxf4 {[%clk 0:00:05.7]} 61... Ra2 {[%clk 0:00:04.1]} 62. g4 {[%clk 0:00:05.9]}
62... Rf2+ {[%clk 0:00:04.2]} 63. Kg3 {[%clk 0:00:06.1]} 63... Ra2 {[%clk
0:00:04.6]} 64. Kf4 {[%clk 0:00:06]} 64... Rf2+ {[%clk 0:00:04.7]} 65. Ke3
{[%clk 0:00:05.7]} 65... Ra2 {[%clk 0:00:04.7]} 66. Kd3 {[%clk 0:00:05.7]} 66...
Ra3+ {[%clk 0:00:04.9]} 67. Kc2 {[%clk 0:00:05.8]} 67... Kg5 {[%clk 0:00:04.9]}
68. Kb2 {[%clk 0:00:05.6]} 68... Rf3 {[%clk 0:00:04.7]} 69. a5 {[%clk
0:00:05.2]} 69... Rf8 {[%clk 0:00:04.7]} 70. a6 {[%clk 0:00:04.5]} 70... Ra8
{[%clk 0:00:05]} 71. Ra4 {[%clk 0:00:04.2]} 71... Kf6 {[%clk 0:00:05.5]} 72. Kc3
{[%clk 0:00:04.1]} 72... Kxe6 {[%clk 0:00:05.8]} 73. a7 {[%clk 0:00:04.4]} 73...
Kd6 {[%clk 0:00:03.7]} 74. Kd4 {[%clk 0:00:04.6]} 74... Ke6 {[%clk 0:00:03.9]}
75. Ke4 {[%clk 0:00:04.6]} 75... Kf6 {[%clk 0:00:04]} 76. Ra6+ {[%clk
0:00:04.7]} 76... Kg5 {[%clk 0:00:03.8]} 77. Kf3 {[%clk 0:00:04.8]} 77... e5
{[%clk 0:00:03.6]} 78. Ra5 {[%clk 0:00:05.1]} 78... Kf6 {[%clk 0:00:03.5]} 79.
Ra4 {[%clk 0:00:04.5]} 79... Kg5 {[%clk 0:00:03.5]} 80. Kg3 {[%clk 0:00:04.6]}
80... Kf6 {[%clk 0:00:02.5]} 81. Ra5 {[%clk 0:00:04.4]} 81... Ke6 {[%clk
0:00:02.1]} 82. Kf3 {[%clk 0:00:04.2]} 82... Kf6 {[%clk 0:00:02.3]} 83. Kg3
{[%clk 0:00:04.5]} 83... Ke6 {[%clk 0:00:02.3]} 84. Kh4 {[%clk 0:00:04]} 84...
Kf6 {[%clk 0:00:02.4]} 85. g5+ {[%clk 0:00:02.4]} 85... Kf5 {[%clk 0:00:02.5]}
86. Kg3 {[%clk 0:00:02.5]} 86... Kxg5 {[%clk 0:00:02.4]} 87. Kf3 {[%clk
0:00:02.7]} 87... Kf6 {[%clk 0:00:03.3]} 88. Ke3 {[%clk 0:00:03.6]} 1-0

[Event "*** Titled Tuesday Blitz"]
[Site "Chess.com"]
[Date "2020.05.12"]
[Round "10"]
[White "ThePatrick27"]
[Black "relaxx87"]
[Result "1-0"]
[WhiteElo "2557"]
[BlackElo "2667"]
[TimeControl "180+1"]
[EndTime "11:57:19 PDT"]
[Termination "ThePatrick27 won by checkmate"]

1. d4 {[%clk 0:03:00.9]} 1... d5 {[%clk 0:02:59.2]} 2. c4 {[%clk 0:03:01.1]}
2... c6 {[%clk 0:02:58.8]} 3. Nf3 {[%clk 0:03:00.5]} 3... Nf6 {[%clk 0:02:59]}
4. Nc3 {[%clk 0:03:00.5]} 4... a6 {[%clk 0:02:59.2]} 5. e3 {[%clk 0:02:59.8]}
5... Bf5 {[%clk 0:02:58.7]} 6. b3 {[%clk 0:02:51.8]} 6... e6 {[%clk 0:02:57.7]}
7. Be2 {[%clk 0:02:51.4]} 7... Nbd7 {[%clk 0:02:57.3]} 8. O-O {[%clk 0:02:51.3]}
8... Bd6 {[%clk 0:02:56.2]} 9. Bb2 {[%clk 0:02:32.3]} 9... Ne4 {[%clk
0:02:48.8]} 10. Bd3 {[%clk 0:02:26.1]} 10... Nxc3 {[%clk 0:02:45.2]} 11. Bxc3
{[%clk 0:02:27]} 11... Bxd3 {[%clk 0:02:44.1]} 12. Qxd3 {[%clk 0:02:27.9]} 12...
O-O {[%clk 0:02:44.3]} 13. e4 {[%clk 0:02:24.6]} 13... dxe4 {[%clk 0:02:44]} 14.
Qxe4 {[%clk 0:02:25.5]} 14... Re8 {[%clk 0:02:44.1]} 15. Rfe1 {[%clk 0:02:19]}
15... Be7 {[%clk 0:02:42.2]} 16. Rad1 {[%clk 0:02:16.7]} 16... Bf6 {[%clk
0:02:42]} 17. Qc2 {[%clk 0:02:15.4]} 17... Qc7 {[%clk 0:02:40.2]} 18. g3 {[%clk
0:02:09.3]} 18... Nf8 {[%clk 0:02:38.9]} 19. Kg2 {[%clk 0:02:08.7]} 19... Red8
{[%clk 0:02:36.9]} 20. Re2 {[%clk 0:01:39.2]} 20... Ng6 {[%clk 0:02:33]} 21. Re3
{[%clk 0:01:25]} 21... Ne7 {[%clk 0:02:21.9]} 22. Qe2 {[%clk 0:01:16.3]} 22...
Nf5 {[%clk 0:02:20.3]} 23. Red3 {[%clk 0:01:15.1]} 23... Rd7 {[%clk 0:02:09.5]}
24. Qe1 {[%clk 0:01:14.7]} 24... Rad8 {[%clk 0:02:06]} 25. Qe4 {[%clk
0:01:08.6]} 25... b5 {[%clk 0:02:00]} 26. cxb5 {[%clk 0:00:42.5]} 26... cxb5
{[%clk 0:01:55.5]} 27. Bb2 {[%clk 0:00:43]} 27... Ne7 {[%clk 0:01:47.3]} 28. Ne5
{[%clk 0:00:38.5]} 28... Bxe5 {[%clk 0:01:42.9]} 29. dxe5 {[%clk 0:00:39.4]}
29... Rxd3 {[%clk 0:01:42.7]} 30. Rxd3 {[%clk 0:00:40.3]} 30... Rxd3 {[%clk
0:01:42]} 31. Qxd3 {[%clk 0:00:41.2]} 31... Nd5 {[%clk 0:01:41.4]} 32. Qd2
{[%clk 0:00:35.7]} 32... h6 {[%clk 0:01:39.2]} 33. f3 {[%clk 0:00:35.6]} 33...
Qc5 {[%clk 0:01:20]} 34. Bd4 {[%clk 0:00:34.4]} 34... Qc6 {[%clk 0:01:20]} 35.
Bb2 {[%clk 0:00:32.4]} 35... h5 {[%clk 0:01:15.7]} 36. h3 {[%clk 0:00:31.5]}
36... g6 {[%clk 0:01:13.5]} 37. Bd4 {[%clk 0:00:29]} 37... b4 {[%clk 0:01:06.3]}
38. Kf2 {[%clk 0:00:28.3]} 38... a5 {[%clk 0:01:06]} 39. Bb2 {[%clk 0:00:20.6]}
39... a4 {[%clk 0:01:03.6]} 40. bxa4 {[%clk 0:00:20]} 40... Qxa4 {[%clk
0:01:01.8]} 41. Bd4 {[%clk 0:00:20.4]} 41... Qa3 {[%clk 0:00:50.8]} 42. h4
{[%clk 0:00:19.7]} 42... Nc3 {[%clk 0:00:47.6]} 43. Kg2 {[%clk 0:00:07.7]} 43...
Nxa2 {[%clk 0:00:32.1]} 44. Bc5 {[%clk 0:00:07.8]} 44... Qc3 {[%clk 0:00:24.5]}
45. Bxb4 {[%clk 0:00:08.1]} 45... Qxb4 {[%clk 0:00:19.3]} 46. Qxa2 {[%clk
0:00:07.9]} 46... Qe1 {[%clk 0:00:19.4]} 47. f4 {[%clk 0:00:06.9]} 47... Qe4+
{[%clk 0:00:19.2]} 48. Kh2 {[%clk 0:00:07.3]} 48... Kg7 {[%clk 0:00:19.7]} 49.
Qg2 {[%clk 0:00:07]} 49... Qe3 {[%clk 0:00:19.6]} 50. Qg1 {[%clk 0:00:06.6]}
50... Qe2+ {[%clk 0:00:20]} 51. Kh3 {[%clk 0:00:06.7]} 51... Qd3 {[%clk
0:00:20.9]} 52. Qe1 {[%clk 0:00:05.9]} 52... Qf3 {[%clk 0:00:20.1]} 53. Kh2
{[%clk 0:00:05]} 53... Kf8 {[%clk 0:00:20]} 54. Qd2 {[%clk 0:00:05.2]} 54... Ke8
{[%clk 0:00:19.6]} 55. Qg2 {[%clk 0:00:04.9]} 55... Qd3 {[%clk 0:00:19.3]} 56.
Qa8+ {[%clk 0:00:05]} 56... Ke7 {[%clk 0:00:19.5]} 57. Qb7+ {[%clk 0:00:05.6]}
57... Kf8 {[%clk 0:00:19.9]} 58. Qa8+ {[%clk 0:00:05.6]} 58... Kg7 {[%clk
0:00:20.1]} 59. Qg2 {[%clk 0:00:06.5]} 59... Qe3 {[%clk 0:00:18.3]} 60. Qg1
{[%clk 0:00:05.6]} 60... Qe2+ {[%clk 0:00:18.2]} 61. Kh3 {[%clk 0:00:05.8]}
61... Kf8 {[%clk 0:00:17.5]} 62. Qg2 {[%clk 0:00:05.1]} 62... Qd1 {[%clk
0:00:15.9]} 63. Kh2 {[%clk 0:00:05.3]} 63... Ke8 {[%clk 0:00:14]} 64. Qg1 {[%clk
0:00:05.3]} 64... Qc2+ {[%clk 0:00:13.7]} 65. Qg2 {[%clk 0:00:05.8]} 65... Qd3
{[%clk 0:00:13.7]} 66. Qf2 {[%clk 0:00:05.5]} 66... Kf8 {[%clk 0:00:14.1]} 67.
Kg2 {[%clk 0:00:05.7]} 67... Kg7 {[%clk 0:00:14.5]} 68. Qf3 {[%clk 0:00:05.6]}
68... Qd2+ {[%clk 0:00:14.9]} 69. Kf1 {[%clk 0:00:05.9]} 69... Qc2 {[%clk
0:00:14.8]} 70. Ke1 {[%clk 0:00:06.1]} 70... Qc1+ {[%clk 0:00:14.9]} 71. Ke2
{[%clk 0:00:06.3]} 71... Qc2+ {[%clk 0:00:15.5]} 72. Ke3 {[%clk 0:00:06.7]}
72... Qc3+ {[%clk 0:00:15.9]} 73. Kf2 {[%clk 0:00:07.3]} 73... Qd2+ {[%clk
0:00:16.1]} 74. Qe2 {[%clk 0:00:07.8]} 74... Qd4+ {[%clk 0:00:16.4]} 75. Kg2
{[%clk 0:00:08.2]} 75... Kf8 {[%clk 0:00:16.2]} 76. Qf2 {[%clk 0:00:08.1]} 76...
Qd5+ {[%clk 0:00:15.9]} 77. Qf3 {[%clk 0:00:08.5]} 77... Qc4 {[%clk 0:00:16.6]}
78. Qe3 {[%clk 0:00:08.1]} 78... Ke7 {[%clk 0:00:12.7]} 79. Qd2 {[%clk
0:00:07.6]} 79... Qc6+ {[%clk 0:00:11]} 80. Kf2 {[%clk 0:00:07.5]} 80... Qh1
{[%clk 0:00:10.1]} 81. Ke3 {[%clk 0:00:07]} 81... Qg1+ {[%clk 0:00:09]} 82. Qf2
{[%clk 0:00:07.6]} 82... Qc1+ {[%clk 0:00:08.8]} 83. Kf3 {[%clk 0:00:08.1]}
83... Qd1+ {[%clk 0:00:06.7]} 84. Ke3 {[%clk 0:00:08.3]} 84... Qc1+ {[%clk
0:00:06.9]} 85. Kf3 {[%clk 0:00:08.2]} 85... Qc3+ {[%clk 0:00:07.1]} 86. Kg2
{[%clk 0:00:08.4]} 86... Qc6+ {[%clk 0:00:07.7]} 87. Kh2 {[%clk 0:00:08.9]}
87... Kd7 {[%clk 0:00:08]} 88. Qd2+ {[%clk 0:00:09]} 88... Kc8 {[%clk
0:00:08.2]} 89. Qg2 {[%clk 0:00:08.6]} 89... Qc3 {[%clk 0:00:08.3]} 90. Qa8+
{[%clk 0:00:08.5]} 90... Kc7 {[%clk 0:00:08.8]} 91. Qa7+ {[%clk 0:00:09]} 91...
Kc6 {[%clk 0:00:09.2]} 92. Qxf7 {[%clk 0:00:09.5]} 92... Kd5 {[%clk 0:00:09.3]}
93. Qxg6 {[%clk 0:00:09.3]} 93... Qd2+ {[%clk 0:00:09.7]} 94. Kh3 {[%clk
0:00:09.6]} 94... Qe2 {[%clk 0:00:10.4]} 95. Qb1 {[%clk 0:00:07.5]} 95... Kd4
{[%clk 0:00:09.9]} 96. Qa1+ {[%clk 0:00:06.5]} 96... Ke3 {[%clk 0:00:09.9]} 97.
Qc3+ {[%clk 0:00:04.8]} 97... Kf2 {[%clk 0:00:09.9]} 98. Qd4+ {[%clk 0:00:04.9]}
98... Kf1 {[%clk 0:00:10.2]} 99. Qa1+ {[%clk 0:00:04.7]} 99... Kf2 {[%clk
0:00:10.6]} 100. Qd4+ {[%clk 0:00:04]} 100... Kf3 {[%clk 0:00:11.1]} 101. Qc3+
{[%clk 0:00:03.9]} 101... Ke4 {[%clk 0:00:10]} 102. Qc6+ {[%clk 0:00:04]} 102...
Kf5 {[%clk 0:00:10]} 103. Qc1 {[%clk 0:00:02.3]} 103... Qg4+ {[%clk 0:00:09.4]}
104. Kh2 {[%clk 0:00:02.4]} 104... Qe2+ {[%clk 0:00:10.3]} 105. Kh3 {[%clk
0:00:02.8]} 105... Qg4+ {[%clk 0:00:09.9]} 106. Kg2 {[%clk 0:00:03.4]} 106...
Qe2+ {[%clk 0:00:08.9]} 107. Kg1 {[%clk 0:00:04]} 107... Qd3 {[%clk 0:00:09.5]}
108. Qe1 {[%clk 0:00:03.5]} 108... Kg4 {[%clk 0:00:09.9]} 109. Qf2 {[%clk
0:00:02.6]} 109... Qd1+ {[%clk 0:00:09]} 110. Kg2 {[%clk 0:00:02.8]} 110... Qd5+
{[%clk 0:00:09.5]} 111. Kh2 {[%clk 0:00:03.1]} 111... Qe4 {[%clk 0:00:10.2]}
112. Qg2 {[%clk 0:00:02.9]} 112... Qe3 {[%clk 0:00:10.8]} 113. Qh3+ {[%clk
0:00:02.8]} 113... Kf3 {[%clk 0:00:11.3]} 114. g4+ {[%clk 0:00:02.9]} 114...
Kxf4 {[%clk 0:00:12.2]} 115. Qxe3+ {[%clk 0:00:03.4]} 115... Kxe3 {[%clk
0:00:12.7]} 116. gxh5 {[%clk 0:00:04.3]} 116... Kf4 {[%clk 0:00:13.6]} 117. h6
{[%clk 0:00:05]} 117... Kxe5 {[%clk 0:00:14.5]} 118. h7 {[%clk 0:00:05.7]}
118... Kf6 {[%clk 0:00:15.2]} 119. h8=Q+ {[%clk 0:00:06.6]} 119... Kf5 {[%clk
0:00:14.5]} 120. Qg7 {[%clk 0:00:06.9]} 120... e5 {[%clk 0:00:14.1]} 121. h5
{[%clk 0:00:07.8]} 121... e4 {[%clk 0:00:13.8]} 122. h6 {[%clk 0:00:08.7]}
122... e3 {[%clk 0:00:14.6]} 123. Qe7 {[%clk 0:00:08.6]} 123... e2 {[%clk
0:00:15.5]} 124. Qxe2 {[%clk 0:00:08.7]} 124... Kg6 {[%clk 0:00:15.6]} 125. Qd2
{[%clk 0:00:09.3]} 125... Kh7 {[%clk 0:00:14.7]} 126. Kg3 {[%clk 0:00:10.2]}
126... Kg6 {[%clk 0:00:15]} 127. Kg4 {[%clk 0:00:10.7]} 127... Kh7 {[%clk
0:00:15.3]} 128. Kg5 {[%clk 0:00:10.9]} 128... Kg8 {[%clk 0:00:15.7]} 129. Kg6
{[%clk 0:00:11]} 129... Kf8 {[%clk 0:00:14.7]} 130. Qd8# {[%clk 0:00:11.9]} 1-0